fUSD/lending_fUSD_20250212
["ID","MTS","AMOUNT","RATE_DAILY","PERIOD"]
[352872734,1739382738034,-500.0,0.00018219,2]
[352872735,1739382738045,-500.0,0.00018219,2]
[352872736,1739382738055,-521.23069951,0.00018219,2]
[352872737,1739382738066,-500.0,0.00018219,2]
[352872738,1739382738077,-500.0,0.00018219,2]
[352872739,1739382738090,-500.0,0.00018219,2]
[352872740,1739382738102,-500.0,0.00018219,2]
[352872741,1739382738113,-500.0,0.00018219,2]
[352872742,1739382738124,-500.0,0.00018219,2]
[352872743,1739382738135,-500.0,0.00018219,2]
[352872744,1739382738146,-500.0,0.00018219,2]
[352872745,1739382738157,-173.79,0.00018219,2]
[352872746,1739382738169,-500.0,0.00018219,2]
[352872747,1739382738180,-500.0,0.00018219,2]
[352872748,1739382738190,-500.0,0.00018219,2]
[352872749,1739382738202,-500.0,0.00018219,2]
[352872750,1739382738213,-500.0,0.00018219,2]
[352872751,1739382738226,-2215.96,0.00018219,2]
[352872752,1739382738238,-500.0,0.00018219,2]
[352872753,1739382738257,-758.04,0.00018219,2]
[352872754,1739382738268,-500.0,0.00018219,2]
[352872755,1739382738279,-791.51,0.00018219,2]
[352872756,1739382738291,-500.0,0.00018219,2]
[352872757,1739382738303,-570.77,0.00018219,2]
[352872758,1739382738314,-500.0,0.00018219,2]
[352872759,1739382738326,-500.0,0.00018219,2]
[352872760,1739382738338,-500.0,0.00018219,2]
[352872761,1739382738348,-500.0,0.00018219,2]
[352872762,1739382738359,-500.0,0.00018219,2]
[352872763,1739382738370,-500.0,0.00018219,2]
[352872764,1739382738381,-500.0,0.00018219,2]
[352872765,1739382738391,-691.1,0.00018219,2]
[352872766,1739382738402,-500.0,0.00018219,2]
[352872767,1739382738414,-500.41,0.00018219,2]
[352872768,1739382738425,-239.14467081,0.00018219,2]
[352872769,1739382738437,-616.94,0.00018219,2]
[352872770,1739382738448,-500.0,0.00018219,2]
[352872771,1739382738459,-576.7,0.00018219,2]
[352872772,1739382738471,-739.81,0.00018219,2]
[352872773,1739382738482,-518.54771519,0.00018219,2]
[352872774,1739382738493,-500.0,0.00018219,2]
[352872775,1739382738504,-500.0,0.00018219,2]
[352872776,1739382738515,-500.0,0.00018219,2]
[352872777,1739382738525,-500.0,0.00018219,2]
[352872778,1739382738536,-500.0,0.00018219,2]
[352872779,1739382738546,-500.0,0.00018219,2]
[352872780,1739382738557,-500.0,0.00018219,2]
[352872781,1739382738567,-500.0,0.00018219,2]
[352872782,1739382738578,-500.0,0.00018219,2]
[352872783,1739382738590,-500.0,0.00018219,2]
[352872784,1739382738601,-500.0,0.00018219,2]
[352872785,1739382738613,-500.0,0.00018219,2]
[352872786,1739382738623,-500.0,0.00018219,2]
[352872787,1739382738633,-500.0,0.00018219,2]
[352872788,1739382738645,-518.71,0.00018219,2]
[352872789,1739382738655,-500.0,0.00018219,2]
[352872790,1739382738665,-500.0,0.00018219,2]
[352872791,1739382738676,-500.0,0.00018219,2]
[352872792,1739382738687,-546.94,0.00018219,2]
[352872793,1739382738697,-500.0,0.00018219,2]
[352872794,1739382738707,-613.95,0.00018219,2]
[352872795,1739382738718,-622.68,0.00018219,2]
[352872796,1739382738729,-500.0,0.00018219,2]
[352872797,1739382738740,-500.0,0.00018219,2]
[352872798,1739382738750,-500.0,0.00018219,2]
[352872799,1739382738761,-549.57,0.00018219,2]
[352872800,1739382738779,-500.0,0.00018219,2]
[352872801,1739382738794,-657.14,0.00018219,2]
[352872802,1739382738803,-500.0,0.00018219,2]
[352872803,1739382738813,-500.0,0.00018219,2]
[352872804,1739382738823,-653.17,0.00018219,2]
[352872805,1739382738833,-500.0,0.00018219,2]
[352872806,1739382738844,-1129.37,0.00018219,2]
[352872807,1739382738854,-566.02,0.00018219,2]
[352872808,1739382738864,-675.41,0.00018219,2]
[352872809,1739382738874,-500.0,0.00018219,2]
[352872810,1739382738884,-500.0,0.00018219,2]
[352872811,1739382738895,-500.0,0.00018219,2]
[352872812,1739382738904,-807.47,0.00018219,2]
[352872813,1739382738915,-500.0,0.00018219,2]
[352872814,1739382738926,-501.31,0.00018219,2]
[352872815,1739382738936,-1231.38,0.00018219,2]
[352872816,1739382738947,-500.0,0.00018219,2]
[352872817,1739382738958,-1199.85,0.00018219,2]
[352872818,1739382738969,-500.0,0.00018219,2]
[352872819,1739382738979,-500.0,0.00018219,2]
[352872820,1739382738990,-500.0,0.00018219,2]
[352872821,1739382739001,-500.0,0.00018219,2]
[352872822,1739382739010,-500.0,0.00018219,2]
[352872823,1739382739021,-500.0,0.00018219,2]
[352872824,1739382739031,-500.0,0.00018219,2]
[352872825,1739382739041,-500.0,0.00018219,2]
[352872826,1739382739051,-500.0,0.00018219,2]
[352872827,1739382739061,-500.0,0.00018219,2]
[352872828,1739382739071,-829.87,0.00018219,2]
[352872829,1739382739081,-1032.55,0.00018219,2]
[352872830,1739382739092,-500.0,0.00018219,2]
[352872831,1739382739102,-813.62,0.00018219,2]
[352872832,1739382739112,-794.25,0.00018219,2]
[352872833,1739382739122,-500.0,0.00018219,2]
[352872834,1739382739132,-500.0,0.00018219,2]
[352872835,1739382739142,-822.32,0.00018219,2]
[352872836,1739382739153,-993.03,0.00018219,2]
[352872837,1739382739164,-548.79,0.00018219,2]
[352872838,1739382739174,-639.8,0.00018219,2]
[352872839,1739382739185,-500.0,0.00018219,2]
[352872840,1739382739195,-500.0,0.00018219,2]
[352872841,1739382739205,-500.0,0.00018219,2]
[352872842,1739382739215,-652.3,0.00018219,2]
[352872843,1739382739226,-516.35,0.00018219,2]
[352872844,1739382739236,-541.15,0.00018219,2]
[352872845,1739382739252,-649.38,0.00018219,2]
[352872846,1739382739262,-568.96,0.00018219,2]
[352872847,1739382739273,-500.0,0.00018219,2]
[352872848,1739382739290,-557.36,0.00018219,2]
[352872849,1739382739301,-500.0,0.00018219,2]
[352872850,1739382739312,-614.87,0.00018219,2]
[352872851,1739382739322,-2905.55,0.00018219,2]
[352872852,1739382739334,-520.63,0.00018219,2]
[352872853,1739382739347,-954.62,0.00018219,2]
[352872854,1739382739358,-1239.29,0.00018219,2]
[352872855,1739382739368,-500.0,0.00018219,2]
[352872856,1739382739379,-533.5,0.00018219,2]
[352872857,1739382739389,-952.94,0.00018219,2]
[352872858,1739382739399,-1268.94,0.00018219,2]
[352872859,1739382739411,-500.0,0.00018219,2]
[352872860,1739382739423,-500.0,0.00018219,2]
[352872861,1739382739434,-581.63,0.00018219,2]
[352872862,1739382739444,-1124.26,0.00018219,2]
[352872863,1739382739455,-500.0,0.00018219,2]
[352872864,1739382739466,-500.0,0.00018219,2]
[352872865,1739382739477,-716.09,0.00018219,2]
[352872866,1739382739488,-500.0,0.00018219,2]
[352872867,1739382739498,-500.0,0.00018219,2]
[352872868,1739382739508,-500.0,0.00018219,2]
[352872869,1739382739519,-924.49,0.00018219,2]
[352872870,1739382739529,-816.17,0.00018219,2]
[352872871,1739382739540,-698.6,0.00018219,2]
[352872872,1739382739550,-500.0,0.00018219,2]
[352872873,1739382739561,-500.0,0.00018219,2]
[352872874,1739382739571,-932.44,0.00018219,2]
[352872875,1739382739581,-500.0,0.00018219,2]
[352872876,1739382739592,-967.11,0.00018219,2]
[352872877,1739382739602,-500.0,0.00018219,2]
[352872878,1739382739613,-1385.13,0.00018219,2]
[352872879,1739382739831,-708.67,0.00018219,2]
[352872880,1739382739842,-500.0,0.00018219,2]
[352872881,1739382739852,-545.84,0.00018219,2]
[352872882,1739382739861,-753.78,0.00018219,2]
[352872883,1739382739871,-1105.97,0.00018219,2]
[352872884,1739382739881,-1050.74,0.00018219,2]
[352872885,1739382739890,-500.0,0.00018219,2]
[352872886,1739382739900,-1743.66,0.00018219,2]
[352872887,1739382739910,-500.0,0.00018219,2]
[352872888,1739382739919,-1570.2,0.00018219,2]
[352872889,1739382739929,-500.0,0.00018219,2]
[352872890,1739382739939,-972.24,0.00018219,2]
[352872891,1739382739949,-500.0,0.00018219,2]
[352872892,1739382739958,-791.73,0.00018219,2]
[352872893,1739382739968,-566.45,0.00018219,2]
[352872894,1739382739978,-549.38,0.00018219,2]
[352872895,1739382739987,-578.94,0.00018219,2]
[352872896,1739382739997,-500.0,0.00018219,2]
[352872897,1739382740007,-544.03,0.00018219,2]
[352872898,1739382740017,-1069.58,0.00018219,2]
[352872899,1739382740027,-500.0,0.00018219,2]
[352872900,1739382740036,-695.43,0.00018219,2]
[352872901,1739382740046,-500.0,0.00018219,2]
[352872902,1739382740056,-500.0,0.00018219,2]
[352872903,1739382740065,-533.36,0.00018219,2]
[352872904,1739382740075,-500.0,0.00018219,2]
[352872905,1739382740085,-500.0,0.00018219,2]
[352872906,1739382740095,-1527.94,0.00018219,2]
[352872907,1739382740105,-784.42,0.00018219,2]
[352872908,1739382740114,-500.0,0.00018219,2]
[352872909,1739382740124,-592.92,0.00018219,2]
[352872910,1739382740134,-815.04,0.00018219,2]
[352872911,1739382740143,-704.34,0.00018219,2]
[352872912,1739382740153,-639.79,0.00018219,2]
[352872913,1739382740165,-500.0,0.00018219,2]
[352872914,1739382740174,-500.0,0.00018219,2]
[352872915,1739382740184,-500.0,0.00018219,2]
[352872916,1739382740194,-500.0,0.00018219,2]
[352872917,1739382740203,-500.0,0.00018219,2]
[352872918,1739382740213,-500.0,0.00018219,2]
[352872919,1739382740223,-500.0,0.00018219,2]
[352872920,1739382740232,-500.0,0.00018219,2]
[352872921,1739382740247,-941.64,0.00018219,2]
[352872922,1739382740259,-521.19204535,0.00018219,2]
[352872923,1739382740269,-500.0,0.00018219,2]
[352872924,1739382740278,-656.91,0.00018219,2]
[352872925,1739382740288,-761.6,0.00018219,2]
[352872926,1739382740298,-1473.21,0.00018219,2]
[352872927,1739382740308,-2165.26,0.00018219,2]
[352872928,1739382740318,-610.51,0.00018219,2]
[352872929,1739382740330,-500.0,0.00018219,2]
[352872930,1739382740340,-649.02,0.00018219,2]
[352872931,1739382740350,-962.74,0.00018233,7]
[352872932,1739382740360,-962.74,0.00018233,7]
[352872933,1739382740371,-1000.0,0.00018271,2]
[352872934,1739382740381,-900.0,0.00018271,2]
[352872935,1739382740390,-1000.0,0.00018278,2]
[352872936,1739382740400,-260.67262,0.00018288,7]
[352872937,1739382740409,-500.0,0.00018292,2]
[352872938,1739382740420,-194.56864723,0.00018297,5]
[352872939,1739382740429,-40048.74071598,0.000183,5]
[352872940,1739382740439,-994.0,0.00018318,2]
[352872941,1739382740448,-1000.0,0.00018347,2]
[352872942,1739382740458,-156.236594,0.00018356,2]
[352872943,1739382740467,-1877.939814,0.00018356,2]
[352872944,1739382740477,-502.948066,0.00018356,2]
[352872945,1739382740486,-158.222268,0.00018356,2]
[352872946,1739382740495,-500.0,0.00018356,2]
[352872947,1739382740504,-500.0,0.00018356,2]
[352872948,1739382740514,-500.0,0.00018356,2]
[352872949,1739382740523,-470.05192798,0.00018356,2]
[352872950,1739382740533,-500.0,0.00018356,2]
[352872951,1739382740543,-1287.0,0.00018356,2]
[352872952,1739382740552,-500.0,0.00018356,2]
[352872953,1739382740562,-500.0,0.00018356,2]
[352872954,1739382740572,-558.27252776,0.00018356,2]
[352872955,1739382740582,-597.79914237,0.00018356,2]
[352872956,1739382740592,-449.26316821,0.00018356,2]
[352872957,1739382740602,-423.11165409,0.00018356,2]
[352872958,1739382740612,-500.0,0.00018356,2]
[352872959,1739382740621,-621.99,0.00018356,2]
[352872960,1739382740631,-500.0,0.00018356,2]
[352872961,1739382740641,-500.0,0.00018356,2]
[352872962,1739382740650,-500.0,0.00018356,2]
[352872963,1739382740660,-591.94,0.00018356,2]
[352872964,1739382740670,-540.68481178,0.00018356,2]
[352872965,1739382740680,-735.65,0.00018356,2]
[352872966,1739382740690,-203.14679633,0.00018356,2]
[352872967,1739382740700,-523.77381104,0.00018356,2]
[352872968,1739382740710,-500.0,0.00018356,2]
[352872969,1739382740720,-500.0,0.00018356,2]
[352872970,1739382740729,-549.65,0.00018356,2]
[352872971,1739382740739,-500.0,0.00018356,2]
[352872972,1739382740748,-479.14353123,0.00018356,2]
[352872973,1739382740758,-553.287102,0.00018356,2]
[352872974,1739382740768,-500.0,0.00018356,2]
[352872975,1739382740778,-500.0,0.00018356,2]
[352872976,1739382740788,-500.0,0.00018356,2]
[352872977,1739382740798,-500.0,0.00018356,2]
[352872978,1739382740807,-500.0,0.00018356,2]
[352872979,1739382740817,-520.32583824,0.00018356,2]
[352872980,1739382740827,-500.0,0.00018356,2]
[352872981,1739382740839,-500.0,0.00018356,2]
[352872982,1739382740849,-521.64021014,0.00018356,2]
[352872983,1739382740858,-500.0,0.00018356,2]
[352872984,1739382740869,-500.0,0.00018356,2]
[352872985,1739382740880,-500.0,0.00018356,2]
[352872986,1739382740890,-501.63989044,0.00018356,2]
[352872987,1739382740900,-2215.96,0.00018356,2]
[352872988,1739382740911,-500.0,0.00018356,2]
[352872989,1739382740921,-758.04,0.00018356,2]
[352872990,1739382740931,-500.0,0.00018356,2]
[352872991,1739382740951,-791.51,0.00018356,2]
[352872992,1739382740965,-500.0,0.00018356,2]
[352872993,1739382740976,-570.77,0.00018356,2]
[352872994,1739382740986,-529.91498322,0.00018356,2]
[352872995,1739382740996,-500.0,0.00018356,2]
[352872996,1739382741006,-500.0,0.00018356,2]
[352872997,1739382741016,-520.98699233,0.00018356,2]
[352872998,1739382741027,-500.0,0.00018356,2]
[352872999,1739382741037,-500.0,0.00018356,2]
[352873000,1739382741047,-500.0,0.00018356,2]
[352873001,1739382741058,-691.1,0.00018356,2]
[352873002,1739382741069,-500.0,0.00018356,2]
[352873003,1739382741079,-500.41,0.00018356,2]
[352873004,1739382741089,-616.94,0.00018356,2]
[352873005,1739382741099,-500.0,0.00018356,2]
[352873006,1739382741110,-576.7,0.00018356,2]
[352873007,1739382741120,-739.81,0.00018356,2]
[352873008,1739382741130,-500.0,0.00018356,2]
[352873009,1739382741141,-242.02422066,0.00018356,2]
[352873010,1739382741151,-500.0,0.00018356,2]
[352873011,1739382741162,-500.0,0.00018356,2]
[352873012,1739382741173,-500.0,0.00018356,2]
[352873013,1739382741183,-500.0,0.00018356,2]
[352873014,1739382741194,-417.97240923,0.00018356,2]
[352873015,1739382741205,-500.0,0.00018356,2]
[352873016,1739382741216,-500.0,0.00018356,2]
[352873017,1739382741226,-500.0,0.00018356,2]
[352873018,1739382741238,-500.0,0.00018356,2]
[352873019,1739382741251,-500.0,0.00018356,2]
[352873020,1739382741261,-500.0,0.00018356,2]
[352873021,1739382741271,-177.31727447,0.00018356,2]
[352873022,1739382741283,-518.71,0.00018356,2]
[352873023,1739382741293,-500.0,0.00018356,2]
[352873024,1739382741304,-500.0,0.00018356,2]
[352873025,1739382741315,-289.54,0.00018356,2]
[352873026,1739382741326,-546.94,0.00018356,2]
[352873027,1739382741336,-500.0,0.00018356,2]
[352873028,1739382741347,-613.95,0.00018356,2]
[352873029,1739382741357,-622.68,0.00018356,2]
[352873030,1739382741368,-178.66991085,0.00018356,2]
[352873031,1739382741379,-308.6425377,0.00018356,2]
[352873032,1739382741389,-500.0,0.00018356,2]
[352873033,1739382741400,-618.81025572,0.00018356,2]
[352873034,1739382741410,-657.14,0.00018356,2]
[352873035,1739382741421,-305.60924117,0.00018356,2]
[352873036,1739382741431,-500.0,0.00018356,2]
[352873037,1739382741441,-653.17,0.00018356,2]
[352873038,1739382741451,-457.87134494,0.00018356,2]
[352873039,1739382741467,-1129.37,0.00018356,2]
[352873040,1739382741477,-566.02,0.00018356,2]
[352873041,1739382741489,-675.41,0.00018356,2]
[352873042,1739382741499,-500.0,0.00018356,2]
[352873043,1739382741511,-500.0,0.00018356,2]
[352873044,1739382741521,-500.0,0.00018356,2]
[352873045,1739382741531,-807.47,0.00018356,2]
[352873046,1739382741542,-500.0,0.00018356,2]
[352873047,1739382741552,-501.31,0.00018356,2]
[352873048,1739382741562,-1231.38,0.00018356,2]
[352873049,1739382741573,-500.0,0.00018356,2]
[352873050,1739382741583,-1199.85,0.00018356,2]
[352873051,1739382741593,-500.0,0.00018356,2]
[352873052,1739382741605,-500.0,0.00018356,2]
[352873053,1739382741615,-500.0,0.00018356,2]
[352873054,1739382741625,-500.0,0.00018356,2]
[352873055,1739382741636,-500.0,0.00018356,2]
[352873056,1739382741647,-500.0,0.00018356,2]
[352873057,1739382741658,-500.0,0.00018356,2]
[352873058,1739382741668,-500.0,0.00018356,2]
[352873059,1739382741678,-500.0,0.00018356,2]
[352873060,1739382741689,-500.0,0.00018356,2]
[352873061,1739382741700,-829.87,0.00018356,2]
[352873062,1739382741710,-1032.55,0.00018356,2]
[352873063,1739382741720,-500.0,0.00018356,2]
[352873064,1739382741731,-813.62,0.00018356,2]
[352873065,1739382741741,-794.25,0.00018356,2]
[352873066,1739382741751,-500.0,0.00018356,2]
[352873067,1739382741761,-500.0,0.00018356,2]
[352873068,1739382741772,-822.32,0.00018356,2]
[352873069,1739382741783,-993.03,0.00018356,2]
[352873070,1739382741793,-548.79,0.00018356,2]
[352873071,1739382741804,-639.8,0.00018356,2]
[352873072,1739382741815,-632.26751839,0.00018356,2]
[352873073,1739382741825,-500.0,0.00018356,2]
[352873074,1739382741835,-500.0,0.00018356,2]
[352873075,1739382741847,-652.3,0.00018356,2]
[352873076,1739382741858,-516.35,0.00018356,2]
[352873077,1739382741869,-541.15,0.00018356,2]
[352873078,1739382741880,-649.38,0.00018356,2]
[352873079,1739382741891,-568.96,0.00018356,2]
[352873080,1739382741901,-557.36,0.00018356,2]
[352873081,1739382741913,-500.0,0.00018356,2]
[352873082,1739382741925,-500.0,0.00018356,2]
[352873083,1739382741935,-614.87,0.00018356,2]
[352873084,1739382741947,-2905.55,0.00018356,2]
[352873085,1739382741959,-520.63,0.00018356,2]
[352873086,1739382741970,-954.62,0.00018356,2]
[352873087,1739382741980,-1239.29,0.00018356,2]
[352873088,1739382741991,-500.0,0.00018356,2]
[352873089,1739382742003,-533.5,0.00018356,2]
[352873090,1739382742013,-952.94,0.00018356,2]
[352873091,1739382742024,-1268.94,0.00018356,2]
[352873092,1739382742035,-500.0,0.00018356,2]
[352873093,1739382742046,-500.0,0.00018356,2]
[352873094,1739382742057,-581.63,0.00018356,2]
[352873095,1739382742068,-1124.26,0.00018356,2]
[352873096,1739382742080,-500.0,0.00018356,2]
[352873097,1739382742092,-500.0,0.00018356,2]
[352873098,1739382742104,-716.09,0.00018356,2]
[352873099,1739382742116,-500.0,0.00018356,2]
[352873100,1739382742126,-500.0,0.00018356,2]
[352873101,1739382742138,-500.0,0.00018356,2]
[352873102,1739382742150,-924.49,0.00018356,2]
[352873103,1739382742161,-816.17,0.00018356,2]
[352873104,1739382742172,-698.6,0.00018356,2]
[352873105,1739382742185,-500.0,0.00018356,2]
[352873106,1739382742196,-500.0,0.00018356,2]
[352873107,1739382742207,-932.44,0.00018356,2]
[352873108,1739382742219,-500.0,0.00018356,2]
[352873109,1739382742231,-967.11,0.00018356,2]
[352873110,1739382742242,-500.0,0.00018356,2]
[352873111,1739382742255,-1385.13,0.00018356,2]
[352873112,1739382742267,-708.67,0.00018356,2]
[352873113,1739382742278,-297.90083897,0.00018356,2]
[352873114,1739382742289,-545.84,0.00018356,2]
[352873115,1739382742302,-753.78,0.00018356,2]
[352873116,1739382742313,-1105.97,0.00018356,2]
[352873117,1739382742325,-1050.74,0.00018356,2]
[352873118,1739382742336,-500.0,0.00018356,2]
[352873119,1739382742348,-1743.66,0.00018356,2]
[352873120,1739382742360,-500.0,0.00018356,2]
[352873121,1739382742371,-1570.2,0.00018356,2]
[352873122,1739382742382,-500.0,0.00018356,2]
[352873123,1739382742393,-972.24,0.00018356,2]
[352873124,1739382742405,-500.0,0.00018356,2]
[352873125,1739382742417,-791.73,0.00018356,2]
[352873126,1739382742428,-549.38,0.00018356,2]
[352873127,1739382742439,-500.0,0.00018356,2]
[352873128,1739382742451,-578.94,0.00018356,2]
[352873129,1739382742463,-544.03,0.00018356,2]
[352873130,1739382742474,-1069.58,0.00018356,2]
[352873131,1739382742485,-500.0,0.00018356,2]
[352873132,1739382742496,-695.43,0.00018356,2]
[352873133,1739382742508,-500.0,0.00018356,2]
[352873134,1739382742520,-500.0,0.00018356,2]
[352873135,1739382742531,-533.36,0.00018356,2]
[352873136,1739382742543,-500.0,0.00018356,2]
[352873137,1739382742554,-520.9986465,0.00018356,2]
[352873138,1739382742566,-1527.94,0.00018356,2]
[352873139,1739382742577,-784.42,0.00018356,2]
[352873140,1739382742588,-500.0,0.00018356,2]
[352873141,1739382742600,-592.92,0.00018356,2]
[352873142,1739382742612,-815.04,0.00018356,2]
[352873143,1739382742622,-704.34,0.00018356,2]
[352873144,1739382742633,-639.79,0.00018356,2]
[352873145,1739382742644,-207.05,0.00018356,2]
[352873146,1739382742655,-519.43843624,0.00018356,2]
[352873147,1739382742665,-500.0,0.00018356,2]
[352873148,1739382742676,-500.0,0.00018356,2]
[352873149,1739382742687,-213.8,0.00018356,2]
[352873150,1739382742698,-500.0,0.00018356,2]
[352873151,1739382742709,-500.0,0.00018356,2]
[352873152,1739382742720,-500.0,0.00018356,2]
[352873153,1739382742731,-941.64,0.00018356,2]
[352873154,1739382742742,-500.0,0.00018356,2]
[352873155,1739382742753,-656.91,0.00018356,2]
[352873156,1739382742765,-761.6,0.00018356,2]
[352873157,1739382742775,-1473.21,0.00018356,2]
[352873158,1739382742786,-2165.26,0.00018356,2]
[352873159,1739382742797,-610.51,0.00018356,2]
[352873160,1739382742809,-500.0,0.00018356,2]
[352873161,1739382742823,-649.02,0.00018356,2]
[352873162,1739382742835,-500.0,0.00018392,2]
[352873163,1739382742846,-1000.0,0.00018483,2]
[352873164,1739382742857,-260.67262,0.00018488,7]
[352873165,1739382742868,-500.0,0.00018492,2]
[352873166,1739382742879,-1877.939814,0.00018493,2]
[352873167,1739382742890,-502.948066,0.00018493,2]
[352873168,1739382742902,-500.0,0.00018493,2]
[352873169,1739382742912,-500.0,0.00018493,2]
[352873170,1739382742924,-500.0,0.00018493,2]
[352873171,1739382742935,-500.0,0.00018493,2]
[352873172,1739382742945,-1287.0,0.00018493,2]
[352873173,1739382742956,-500.0,0.00018493,2]
[352873174,1739382742967,-500.0,0.00018493,2]
[352873175,1739382742978,-429.14,0.00018493,2]
[352873176,1739382742989,-621.99,0.00018493,2]
[352873177,1739382743000,-500.0,0.00018493,2]
[352873178,1739382743011,-500.0,0.00018493,2]
[352873179,1739382743022,-500.0,0.00018493,2]
[352873180,1739382743034,-591.94,0.00018493,2]
[352873181,1739382743045,-735.65,0.00018493,2]
[352873182,1739382743056,-500.0,0.00018493,2]
[352873183,1739382743067,-500.0,0.00018493,2]
[352873184,1739382743079,-549.65,0.00018493,2]
[352873185,1739382743090,-427.25805278,0.00018493,2]
[352873186,1739382743102,-510.81031653,0.00018493,2]
[352873187,1739382743113,-500.0,0.00018493,2]
[352873188,1739382743124,-215.06824275,0.00018493,2]
[352873189,1739382743135,-500.0,0.00018493,2]
[352873190,1739382743147,-500.0,0.00018493,2]
[352873191,1739382743159,-500.0,0.00018493,2]
[352873192,1739382743172,-500.0,0.00018493,2]
[352873193,1739382743183,-500.0,0.00018493,2]
[352873194,1739382743194,-500.0,0.00018493,2]
[352873195,1739382743206,-2215.96,0.00018493,2]
[352873196,1739382743217,-500.0,0.00018493,2]
[352873197,1739382743228,-758.04,0.00018493,2]
[352873198,1739382743240,-500.0,0.00018493,2]
[352873199,1739382743252,-791.51,0.00018493,2]
[352873200,1739382743264,-500.0,0.00018493,2]
[352873201,1739382743275,-570.77,0.00018493,2]
[352873202,1739382743288,-500.0,0.00018493,2]
[352873203,1739382743300,-500.0,0.00018493,2]
[352873204,1739382743312,-197.49826973,0.00018493,2]
[352873205,1739382743326,-528.71251845,0.00018493,2]
[352873206,1739382743338,-500.0,0.00018493,2]
[352873207,1739382743350,-691.1,0.00018493,2]
[352873208,1739382743362,-552.53564225,0.00018493,2]
[352873209,1739382743373,-500.41,0.00018493,2]
[352873210,1739382743385,-616.94,0.00018493,2]
[352873211,1739382743398,-345.87528587,0.00018493,2]
[352873212,1739382743634,-576.7,0.00018493,2]
[352873213,1739382743645,-739.81,0.00018493,2]
[352873214,1739382743656,-500.0,0.00018493,2]
[352873215,1739382743666,-500.0,0.00018493,2]
[352873216,1739382743676,-500.0,0.00018493,2]
[352873217,1739382743687,-500.0,0.00018493,2]
[352873218,1739382743697,-500.0,0.00018493,2]
[352873219,1739382743707,-522.13303003,0.00018493,2]
[352873220,1739382743717,-500.0,0.00018493,2]
[352873221,1739382743727,-500.0,0.00018493,2]
[352873222,1739382743737,-500.0,0.00018493,2]
[352873223,1739382743747,-500.0,0.00018493,2]
[352873224,1739382743757,-500.0,0.00018493,2]
[352873225,1739382743767,-518.71,0.00018493,2]
[352873226,1739382743778,-500.0,0.00018493,2]
[352873227,1739382743788,-500.0,0.00018493,2]
[352873228,1739382743799,-546.94,0.00018493,2]
[352873229,1739382743809,-500.0,0.00018493,2]
[352873230,1739382743820,-613.95,0.00018493,2]
[352873231,1739382743829,-622.68,0.00018493,2]
[352873232,1739382743839,-218.73406692,0.00018493,2]
[352873233,1739382743850,-657.14,0.00018493,2]